bitfinex-derivatives/quotes_SOLF0:USTF0_20250509
["timestamp","ask_amount","ask_price","bid_price","bid_amount"]
[1746812743910,29.98,171.76,171.74,5.8222]
[1746812744305,29.98,171.76,171.73,5.8225]
[1746812744509,29.98,171.76,171.7,29.9]
[1746812744911,29.98,171.76,171.65,386.96]
[1746812745112,29.9,171.75,171.66,29.9]
[1746812747818,5.823,171.73,171.69,5.8239]
[1746812748214,29.9,171.75,171.69,5.8239]
[1746812748818,29.9,171.75,171.7,5.8238]
[1746812749012,29.9,171.75,171.66,29.9]
[1746812750016,1.916,171.74,171.64,1.8097]
[1746812750416,5.8242,171.69,171.66,5.8249]
[1746812750613,29.96,171.7,171.62,1.9101]
[1746812750819,59.82,171.7,171.63,5.826]
[1746812751118,59.82,171.7,171.59,390.6863]
[1746812751319,5.8258,171.64,171.61,5.8267]
[1746812751709,5.8258,171.64,171.59,3.8263]
[1746812751917,5.8264,171.63,171.59,5.8272]
[1746812752121,5.8264,171.63,171.58,31.6936]
[1746812752418,5.8267,171.62,171.58,37.5212]
[1746812752624,5.8267,171.62,171.58,35.6876]
[1746812753721,5.8268,171.61,171.58,29.86]
[1746812754019,59.82,171.65,171.55,3.7501]
[1746812754417,5.8267,171.62,171.58,5.8276]
[1746812755919,5.827,171.61,171.57,5.8281]
[1746812757518,5.8273,171.6,171.57,5.8281]
[1746812758322,5.827,171.61,171.57,5.8281]
[1746812758521,1.8107,171.64,171.58,5.8278]
[1746812759324,5.8267,171.62,171.58,5.8278]
[1746812760318,5.8268,171.61,171.57,5.8281]
[1746812760519,1.8107,171.64,171.57,5.8281]
[1746812760720,1.8107,171.64,171.53,59.8]
[1746812760921,5.8267,171.62,171.58,5.8276]
[1746812761817,5.8268,171.61,171.58,5.8276]
[1746812763218,1.8107,171.64,171.58,5.8276]
[1746812763219,5.8266,171.62,171.58,5.8276]
[1746812763418,1.8107,171.64,171.58,5.8276]
[1746812763818,5.8268,171.62,171.59,5.8275]
[1746812764126,1.8107,171.64,171.53,31.9306]
[1746812764324,5.8271,171.61,171.53,31.9306]
[1746812765425,29.96,171.65,171.53,31.9306]
[1746812765625,29.96,171.65,171.6,5.827]
[1746812766025,5.8262,171.63,171.6,5.827]
[1746812766229,29.96,171.65,171.57,29.8]
[1746812767422,29.96,171.65,171.63,5.8259]
[1746812767626,59.62,171.69,171.58,29.82]
[1746812767923,29.8,171.69,171.59,3.8839]
[1746812768326,35.6242,171.69,171.59,3.8839]
[1746812768524,29.8,171.69,171.59,3.8839]
[1746812768926,5.8245,171.68,171.59,3.8839]
[1746812769624,29.8,171.69,171.59,3.8839]
[1746812769829,29.82,171.7,171.6,15.36387137]
[1746812770127,29.82,171.7,171.67,5.8246]
[1746812770326,29.82,171.7,171.63,29.78]
[1746812770629,35.644,171.7,171.66,5.8249]
[1746812770829,35.644,171.7,171.63,29.78]
[1746812771223,35.644,171.7,171.67,5.8246]
[1746812771428,29.82,171.7,171.63,29.78]
[1746812771831,29.82,171.7,171.63,59.6]
[1746812772028,29.82,171.7,171.68,5.8242]
[1746812772228,29.82,171.7,171.63,59.6]
[1746812772727,29.82,171.7,171.63,29.78]
[1746812773229,5.8248,171.67,171.64,5.8256]
[1746812773432,29.82,171.7,171.63,29.78]
[1746812773731,5.825,171.67,171.64,5.8257]
[1746812774831,29.82,171.7,171.61,1.9311]
[1746812776529,29.82,171.7,171.69,5.8241]
[1746812779131,5.8229,171.73,171.7,5.8235]
[1746812779534,29.82,171.74,171.65,3.8168]
[1746812779737,29.82,171.74,171.73,5.8228]
[1746812780638,29.82,171.74,171.72,5.823]
[1746812780832,29.82,171.74,171.67,1.9237]
[1746812781343,5.8228,171.73,171.67,1.9237]
[1746812782241,29.82,171.74,171.67,1.9237]
[1746812783443,29.82,171.74,171.71,5.8231]
[1746812783743,35.6425,171.74,171.67,1.9237]
[1746812784042,35.6425,171.74,171.72,5.8231]
[1746812784236,29.82,171.74,171.72,5.8231]
[1746812784643,29.82,171.74,171.73,5.8228]
[1746812784942,503.3,171.77,171.67,1.9237]
[1746812785144,503.3,171.77,171.67,358.9237]
[1746812785343,59.5,171.78,171.67,358.9237]
[1746812785540,5.8218,171.76,171.67,358.9237]
[1746812785946,5.8215,171.77,171.67,358.9237]
[1746812786140,29.8,171.78,171.67,358.9237]
[1746812786346,503.34,171.85,171.69,11.6482]
[1746812786647,29.8,171.82,171.7,59.5]
[1746812786840,29.8,171.82,171.77,5.8211]
[1746812787340,5.8205,171.8,171.77,5.8211]
[1746812788148,5.8209,171.79,171.76,5.8217]
[1746812788650,5.8207,171.79,171.76,5.8216]
[1746812789051,503.34,171.85,171.75,29.68]
[1746812789251,29.8,171.84,171.75,29.68]
[1746812789550,29.8,171.84,171.8,5.8202]
[1746812789551,5.8194,171.83,171.8,5.8202]
[1746812789850,5.8201,171.81,171.78,5.8209]
[1746812790051,29.8,171.84,171.75,29.68]
[1746812790452,5.8195,171.83,171.79,5.8204]
[1746812790645,29.8,171.84,171.75,29.68]
[1746812791250,5.8203,171.81,171.75,29.68]
[1746812791451,29.8,171.84,171.75,29.68]
[1746812791845,5.8199,171.82,171.75,29.68]
[1746812792052,29.8,171.84,171.75,29.68]
[1746812792250,5.8199,171.82,171.78,5.8209]
[1746812792547,29.8,171.84,171.78,5.8209]
[1746812792742,29.8,171.84,171.75,29.68]
[1746812793442,5.8196,171.83,171.79,5.8205]
[1746812794151,35.6191,171.84,171.8,5.8204]
[1746812794350,29.8,171.84,171.76,29.64]
[1746812794654,29.8,171.84,171.76,386.64]
[1746812794950,29.64,171.88,171.86,5.8183]
[1746812795655,35.4578,171.88,171.85,5.8186]
[1746812796151,29.64,171.88,171.85,5.8186]
[1746812796355,29.64,171.88,171.82,3.738]
[1746812796551,29.64,171.88,171.82,5.6219]
[1746812796755,35.4577,171.88,171.85,5.8185]
[1746812797052,29.64,171.88,171.82,5.6219]
[1746812797654,29.64,171.88,171.82,3.738]
[1746812797858,29.64,171.88,171.81,357.0]
[1746812798251,29.64,171.87,171.81,357.0]
[1746812798451,5.8197,171.82,171.79,5.8206]
[1746812798750,29.64,171.87,171.79,5.8206]
[1746812799356,29.64,171.87,171.78,35.4609]
[1746812799555,5.8196,171.83,171.78,29.64]
[1746812799745,35.4596,171.83,171.78,29.64]
[1746812801057,29.64,171.87,171.78,29.64]
[1746812802157,5.8184,171.86,171.82,5.8194]
[1746812802357,29.64,171.87,171.78,29.64]
[1746812802659,35.4582,171.87,171.83,5.8191]
[1746812802858,35.4582,171.87,171.78,29.64]
[1746812803661,29.64,171.87,171.84,5.8189]
[1746812803858,29.64,171.87,171.78,29.64]
[1746812804058,29.64,171.87,171.78,59.28]
[1746812804257,29.64,171.87,171.85,5.8186]
[1746812804555,29.64,171.87,171.78,416.28]
[1746812804750,29.64,171.87,171.85,5.8185]
[1746812805554,29.64,171.9,171.78,416.28]
[1746812805755,29.64,171.9,171.86,5.8183]
[1746812807262,35.4571,171.9,171.86,5.8183]
[1746812807862,29.64,171.9,171.85,5.8186]
[1746812808058,29.64,171.9,171.78,416.28]
[1746812808259,29.64,171.9,171.78,59.28]
[1746812808961,29.64,171.9,171.82,5.8194]
[1746812809263,29.64,171.9,171.78,59.28]
[1746812810057,5.8179,171.88,171.78,59.28]
[1746812810252,29.64,171.9,171.78,59.28]
[1746812811266,29.64,171.9,171.78,29.64]
[1746812811462,29.64,171.9,171.79,29.58]
[1746812811861,5.8174,171.89,171.86,5.8181]
[1746812812259,29.64,171.9,171.8,3.8556]
[1746812812561,29.64,171.9,171.8,360.8556]
[1746812812860,29.64,171.9,171.88,5.8176]
[1746812813357,29.64,171.9,171.8,372.4962]
[1746812813662,29.64,171.9,171.89,5.8173]
[1746812815162,568.59718471,171.93,171.9,5.8169]
[1746812815660,35.4558,171.94,171.85,1.8147]
[1746812815857,29.64,171.94,171.86,3.6975]
[1746812816061,29.64,171.94,171.92,5.8161]
[1746812816367,29.64,171.94,171.86,3.6975]
[1746812816564,59.2,171.98,171.86,3.6975]
[1746812816764,59.2,171.98,171.86,360.6975]
[1746812817364,5.8158,171.94,171.86,360.6975]
[1746812817767,59.2,171.98,171.86,360.6975]
[1746812817965,5.8162,171.93,171.9,5.8168]
[1746812818270,59.2,171.98,171.86,360.6975]
[1746812818569,59.2,171.98,171.89,5.8172]
[1746812818766,59.2,171.98,171.87,29.56]
[1746812819467,59.2,171.98,171.86,360.6975]
[1746812819667,70.8289,171.98,171.86,357.0]
[1746812819865,15.36387137,171.95,171.86,357.0]
[1746812820068,5.8177,171.88,171.86,357.0]
[1746812820372,29.62,171.9,171.85,5.8186]
[1746812820566,5.8177,171.88,171.85,5.8186]
[1746812820968,29.62,171.9,171.83,29.56]
[1746812821368,29.62,171.9,171.85,5.8185]
[1746812821568,5.8177,171.88,171.85,5.8185]
[1746812822171,5.8177,171.88,171.84,5.8189]
[1746812822476,5.8177,171.88,171.83,29.56]
[1746812822775,29.62,171.9,171.83,29.56]
[1746812823167,5.8175,171.89,171.83,29.56]
[1746812823573,5.8177,171.88,171.85,5.8185]
[1746812824776,5.8177,171.88,171.84,5.8189]
[1746812824969,5.818,171.87,171.84,5.8189]
[1746812825370,29.62,171.9,171.8,3.7361]
[1746812825874,5.8187,171.85,171.82,5.8196]
[1746812826867,29.62,171.9,171.82,5.8196]
[1746812827068,29.54,171.89,171.8,3.7361]
[1746812827575,5.8181,171.87,171.84,5.819]
[1746812828077,5.8178,171.88,171.84,5.819]
[1746812828374,29.54,171.89,171.8,3.7361]
[1746812828576,5.8181,171.87,171.8,3.7361]
[1746812828872,29.62,171.9,171.8,3.7361]
[1746812829285,29.62,171.9,171.8,360.7361]
[1746812829475,31.4021,171.94,171.8,360.7361]
[1746812829777,29.54,171.94,171.8,360.7361]
[1746812830078,29.54,171.98,171.95,5.8152]
[1746812830273,29.54,171.98,171.89,29.52]
[1746812830475,5.8152,171.96,171.9,1.9737]
[1746812830775,29.54,171.98,171.91,5.8165]
[1746812831073,29.54,171.98,171.9,1.9737]
[1746812831273,29.54,171.98,171.92,5.8161]
[1746812831578,5.8154,171.95,171.92,5.8161]
[1746812831875,29.54,171.98,171.91,5.8165]
[1746812832080,29.54,171.98,171.89,29.52]
[1746812832383,5.8152,171.96,171.89,29.52]
[1746812832678,29.54,171.98,171.89,29.52]
[1746812832679,29.54,171.98,171.93,5.8157]
[1746812833481,29.54,171.98,171.92,5.8162]
[1746812833781,29.54,171.98,171.89,29.52]
[1746812834082,5.8152,171.96,171.92,5.816]
[1746812834281,5.8152,171.96,171.88,1.993]
[1746812834581,29.54,171.98,171.87,386.52]
[1746812834582,29.52,171.95,171.89,5.8172]
[1746812835185,29.52,171.95,171.87,357.0]
[1746812835583,35.3356,171.95,171.91,5.8164]
[1746812835776,29.52,171.95,171.87,357.0]
[1746812836179,5.8165,171.92,171.87,357.0]
[1746812836378,35.3365,171.92,171.85,1.9425]
[1746812836674,29.52,171.92,171.85,1.9425]
[1746812837178,29.52,171.92,171.89,5.8171]
[1746812837374,29.52,171.92,171.85,1.9425]
[1746812839391,5.8167,171.91,171.87,5.818]
[1746812839688,29.52,171.92,171.87,5.818]
[1746812839989,29.52,171.92,171.85,1.9425]
[1746812840488,29.52,171.92,171.89,5.8171]
[1746812840786,29.52,171.92,171.85,1.9425]
[1746812841083,29.52,171.96,171.85,1.9425]
[1746812842187,29.52,171.96,171.85,358.9425]
[1746812842690,29.52,171.96,171.85,359.9425]
[1746812843787,35.3351,171.96,171.85,359.9425]
[1746812843989,29.52,171.96,171.93,5.8159]
[1746812844189,29.52,171.96,171.85,359.9425]
[1746812844388,35.335,171.96,171.85,359.9425]
[1746812844788,29.52,171.96,171.85,359.9425]
[1746812845790,35.335,171.96,171.93,5.8159]
[1746812845993,29.52,171.96,171.93,5.8159]
[1746812846685,29.52,171.96,171.89,29.48]
[1746812846991,29.52,171.96,171.9,1.8428]
[1746812847791,29.52,171.96,171.93,5.8157]
[1746812848087,29.52,171.96,171.87,59.0]
[1746812848790,5.8157,171.94,171.91,5.8164]
[1746812849192,29.52,171.96,171.91,5.8164]
[1746812849489,5.8154,171.95,171.92,5.8163]
[1746812850186,5.816,171.93,171.86,1.8428]
[1746812850387,29.48,171.94,171.85,1.0]
[1746812850694,5.8177,171.88,171.85,1.0]
[1746812850887,29.52,171.88,171.85,1.0]
[1746812851686,5.8183,171.86,171.85,1.0]
[1746812851890,29.52,171.88,171.85,1.0]
[1746812852592,15.36387137,171.9,171.85,1.0]
[1746812852791,15.36387137,171.93,171.85,1.0]
[1746812852993,59.02,171.92,171.88,5.8176]
[1746812853191,59.02,171.91,171.85,1.0]
[1746812853591,5.8176,171.89,171.85,6.8184]
[1746812853993,59.02,171.91,171.85,6.8184]
[1746812854688,59.02,171.91,171.85,1.0]
[1746812855295,59.02,171.91,171.85,6.8186]
[1746812855496,59.02,171.91,171.85,1.0]
[1746812856089,5.8177,171.88,171.85,1.0]
[1746812856795,5.8183,171.87,171.85,1.0]
[1746812856998,29.48,171.86,171.85,1.0]
[1746812857400,35.2983,171.86,171.85,1.0]
[1746812858201,29.48,171.86,171.85,1.0]
[1746812858798,35.2983,171.86,171.85,1.0]
[1746812859001,58.96,171.86,171.77,1.9894]
[1746812859391,5.8188,171.85,171.77,1.9894]
[1746812859800,58.96,171.86,171.77,1.9894]
[1746812859997,64.7784,171.86,171.82,5.8195]
[1746812860196,58.96,171.86,171.77,1.9894]
[1746812860398,64.7786,171.86,171.82,5.8196]
[1746812860600,58.96,171.86,171.77,1.9894]
[1746812860799,29.48,171.86,171.77,1.9894]
[1746812861100,29.48,171.86,171.85,5.8187]
[1746812862193,502.8,171.89,171.88,5.8177]
[1746812862400,502.8,171.89,171.79,29.48]
[1746812862401,29.48,171.9,171.79,29.48]
[1746812862600,29.48,171.9,171.79,386.48]
[1746812862800,5.8175,171.89,171.79,386.48]
[1746812863200,35.297,171.9,171.86,5.818]
[1746812863401,29.48,171.9,171.79,386.48]
[1746812864500,29.48,171.9,171.8,15.36387137]
[1746812864892,35.2957,171.94,171.9,5.8167]
[1746812865098,29.48,171.94,171.85,29.54]
[1746812865402,29.48,171.94,171.86,5.4245]
[1746812866399,29.48,171.94,171.86,362.4245]
[1746812866600,29.48,172.01,171.86,362.4245]
[1746812866801,29.48,172.01,171.88,15.36387137]
[1746812866996,29.48,172.01,171.89,29.48]
[1746812867200,29.48,172.01,171.9,30.52]
[1746812867801,5.8139,172.0,171.96,5.8148]
[1746812868401,29.48,172.01,171.94,5.8153]
[1746812868604,29.48,172.01,171.9,387.52]
[1746812868803,29.48,172.01,171.9,30.52]
[1746812869006,5.8142,171.99,171.9,30.52]
[1746812869206,29.48,172.01,171.9,30.52]
[1746812870107,5.8144,171.98,171.94,5.8154]
[1746812870413,29.48,172.01,171.9,30.52]
[1746812870604,5.8146,171.98,171.93,5.8159]
[1746812870904,5.8146,171.98,171.9,30.52]
[1746812870905,29.48,172.01,171.9,30.52]
[1746812871306,5.8145,171.98,171.94,5.8154]
[1746812871504,29.48,172.01,171.9,30.52]
[1746812872005,29.48,172.01,171.95,5.815]
[1746812872205,29.48,172.01,171.9,30.52]
[1746812872509,29.48,172.01,171.9,387.52]
[1746812873704,29.48,172.01,171.93,5.8157]
[1746812873906,29.48,172.01,171.9,387.52]
[1746812874708,5.8143,171.98,171.9,387.52]
[1746812876207,37.394,171.99,171.9,387.52]
[1746812876401,29.48,172.01,171.9,387.52]
[1746812876997,29.48,172.01,171.99,5.8139]
[1746812877200,29.48,172.01,171.9,387.52]
[1746812877406,35.2933,172.01,171.97,5.8143]
[1746812877612,29.48,172.01,171.9,387.52]
[1746812877802,29.48,172.01,171.89,61.06]
[1746812878001,5.8145,171.98,171.93,5.8157]
[1746812878211,61.06,172.01,171.93,5.8157]
[1746812878503,5.8145,171.98,171.93,5.8157]
[1746812878705,61.06,172.01,171.93,5.8157]
[1746812878907,61.06,172.01,171.89,61.06]
[1746812878908,61.06,172.01,171.92,5.8162]
[1746812879309,61.06,172.01,171.88,357.0]
[1746812879609,5.8155,171.95,171.91,5.8165]
[1746812879811,36.4755,171.95,171.91,5.8165]
[1746812880007,30.66,171.95,171.92,5.8163]
[1746812880208,36.4754,171.95,171.86,36.9045]
[1746812880509,30.66,171.95,171.86,36.9045]
[1746812880711,36.4755,171.95,171.86,36.9045]
[1746812880911,30.66,171.95,171.86,36.9045]
[1746812881205,30.66,171.95,171.93,5.8158]
[1746812881623,30.66,171.95,171.94,5.8156]
[1746812882414,30.66,171.99,171.86,36.9045]
[1746812882807,30.66,171.99,171.88,15.36387137]
[1746812883007,30.66,171.99,171.98,5.8143]
[1746812883208,31.46,172.04,171.94,31.46]
[1746812883209,30.66,172.03,171.94,31.46]
[1746812883510,5.8139,172.0,171.94,31.46]
[1746812884007,5.8135,172.01,171.96,5.8147]
[1746812884207,30.66,172.03,171.94,31.46]
[1746812884805,5.8134,172.01,171.94,31.46]
[1746812885312,5.8134,172.01,171.98,5.8141]
[1746812885614,5.8139,172.0,171.94,31.46]
[1746812885811,30.66,172.03,171.97,5.8146]
[1746812886112,5.8139,172.0,171.97,5.8146]
[1746812886514,30.66,172.03,171.97,5.8146]
[1746812886812,5.8134,172.01,171.98,5.8143]
[1746812887112,5.8134,172.01,171.94,31.46]
[1746812887414,30.66,172.03,171.94,31.46]
[1746812887914,5.8135,172.01,171.97,5.8143]
[1746812888208,5.8135,172.01,171.94,31.46]
[1746812888416,5.8135,172.01,171.98,5.8141]
[1746812889216,5.813,172.02,171.99,5.8139]
[1746812889714,5.813,172.02,171.94,31.46]
[1746812889915,5.8135,172.01,171.97,5.8144]
[1746812890715,30.66,172.03,171.98,5.8143]
[1746812891217,5.813,172.02,171.94,31.46]
[1746812892116,5.813,172.02,171.98,5.8141]
[1746812892416,30.66,172.03,171.94,31.46]
[1746812893012,30.64,172.07,171.94,31.46]
[1746812893214,30.64,172.07,172.03,5.8126]
[1746812893517,5.8116,172.06,171.94,388.46]
[1746812893714,30.64,172.07,171.94,388.46]
[1746812893912,30.64,172.07,171.96,15.36387137]
[1746812894217,30.64,172.11,172.05,5.8118]
[1746812894517,5.8108,172.09,172.01,31.72]
[1746812894717,5.8108,172.09,172.02,5.7553]
[1746812895222,5.8103,172.1,172.05,5.8119]
[1746812895519,30.64,172.13,172.02,5.7553]
[1746812895713,31.9,172.23,172.04,15.36387137]
[1746812895916,31.9,172.23,172.06,15.36387137]
[1746812896118,1.03489023,172.22,172.07,32.68]
[1746812896316,1.03489023,172.22,172.08,31.9]
[1746812897117,15.36387137,172.2,172.05,32.76]
[1746812897324,15.36387137,172.2,172.05,357.0]
[1746812897621,1.03489023,172.19,172.06,5.8115]
[1746812897815,31.9,172.18,172.06,5.8115]
[1746812898121,15.36387137,172.14,172.02,5.7553]
[1746812898321,64.86,172.13,172.02,5.7553]
[1746812898517,64.9,172.12,172.02,5.7553]
[1746812899024,5.8106,172.09,172.02,5.7553]
[1746812899220,5.8106,172.09,172.03,5.8125]
[1746812899818,64.9,172.12,172.02,5.7553]
[1746812900021,64.9,172.12,171.97,33.4]
[1746812900419,5.8119,172.06,172.0,5.8136]
[1746812900622,33.08,172.06,171.97,33.4]
[1746812901120,33.08,172.06,172.0,5.8134]
[1746812901624,38.8919,172.06,171.97,5.8143]
[1746812901820,33.08,172.06,171.96,39.3274]
[1746812902318,5.812,172.05,171.96,39.3274]
[1746812902524,33.08,172.06,171.96,39.3274]
[1746812902917,5.8123,172.05,171.98,5.8142]
[1746812903124,33.08,172.06,171.98,5.8142]
[1746812903625,5.8125,172.04,171.98,5.8142]
[1746812903926,15.36387137,172.1,171.96,39.3274]
[1746812904226,5.8117,172.06,171.96,39.3274]
[1746812904426,5.8117,172.06,172.0,5.8134]
[1746812904725,38.9113,172.07,171.96,39.3274]
[1746812905121,38.9113,172.07,172.02,5.8127]
[1746812906327,5.8116,172.06,172.02,5.8127]
[1746812906529,33.1,172.07,171.96,397.3274]
[1746812907227,5.8124,172.04,171.99,5.8137]
[1746812907429,33.1,172.07,171.99,5.8137]
[1746812907926,5.8126,172.03,171.99,5.8137]
[1746812908128,33.1,172.07,171.97,5.8144]
[1746812908326,5.8132,172.02,171.97,5.8144]
[1746812908626,33.36,172.05,171.97,5.8144]
[1746812908928,5.8132,172.02,171.98,5.8143]
[1746812909124,5.8132,172.02,171.96,363.8674]
[1746812909125,33.36,172.05,171.96,363.8674]
[1746812909526,5.8123,172.04,171.96,363.8674]
[1746812909732,33.36,172.05,171.96,363.8674]
[1746812910733,33.36,172.05,171.96,369.6823]
[1746812911128,33.36,172.05,171.96,1.0]
[1746812911327,48.72387137,172.05,171.96,1.0]
[1746812911830,5.8146,171.97,171.96,1.0]
[1746812912035,33.1,171.98,171.89,33.52]
[1746812912236,33.1,171.97,171.89,33.52]
[1746812912432,5.815,171.96,171.91,5.8164]
[1746812912641,33.1,171.97,171.89,33.52]
[1746812913734,33.1,171.97,171.87,33.1]
[1746812915238,33.1,171.97,171.94,5.8154]
[1746812916542,38.9147,171.97,171.88,33.46]
[1746812916936,33.1,171.97,171.88,33.46]
[1746812917642,33.1,171.97,171.94,5.8156]
[1746812917941,33.1,171.97,171.88,33.46]
[1746812918742,33.1,171.97,171.95,5.8152]
[1746812918943,33.1,172.02,171.88,405.82387137]
[1746812920042,33.1,172.02,171.89,11.6344]
[1746812920436,33.1,172.02,171.88,405.82387137]
[1746812920640,5.8126,172.03,171.9,11.634]
[1746812920937,5.8126,172.03,171.91,5.5633]
[1746812921138,5.813,172.02,171.99,5.8137]
[1746812921539,535.48,172.04,171.94,33.5]
[1746812921940,541.2923,172.04,171.94,33.5]
[1746812922241,1.6566,172.08,171.94,33.5]
[1746812922443,33.1,172.06,171.94,33.5]
[1746812922645,5.8127,172.03,171.99,5.8137]
[1746812923349,5.8127,172.03,172.0,5.8135]
[1746812923540,5.813,172.02,171.94,33.5]
[1746812923847,66.5,172.06,172.0,5.8136]
[1746812924043,66.5,172.06,171.94,33.5]
[1746812924248,66.5,172.06,171.97,5.8144]
[1746812924746,66.5,172.06,171.95,5.815]
[1746812924948,66.5,172.06,171.92,357.0]
[1746812925145,1.03589587,172.05,171.91,38.6633]
[1746812925341,5.8144,171.98,171.94,5.8154]
[1746812925643,1.03589587,172.05,171.92,33.1]
[1746812925839,33.1,172.07,171.92,390.1]
[1746812925840,34.9118,172.07,171.92,390.1]
[1746812926247,34.9118,172.07,171.92,357.0]
[1746812926549,5.813,172.02,171.92,357.0]
[1746812926749,33.1,172.01,171.92,357.0]
[1746812928042,5.8142,171.99,171.92,357.0]
[1746812928251,5.8142,171.99,171.91,5.5633]
[1746812928938,5.8144,171.98,171.91,5.5633]
[1746812929148,5.8144,171.98,171.94,5.8154]
[1746812929342,33.1,172.01,171.94,5.8154]
[1746812929545,5.8144,171.98,171.94,5.8154]
[1746812930047,5.8144,171.98,171.95,5.8153]
[1746812930548,5.8144,171.98,171.94,5.8156]
[1746812932850,33.1,172.01,171.93,5.8159]
[1746812933051,48.46387137,172.01,171.85,33.66]
[1746812933252,1.8139,172.0,171.86,5.6947]
[1746812933548,1.8139,172.0,171.89,5.8172]
[1746812933746,1.8139,172.0,171.86,5.6947]
[1746812933942,5.8165,171.92,171.88,5.8174]
[1746812934149,39.4765,171.92,171.88,5.8174]
[1746812935545,5.8167,171.91,171.87,5.8177]
[1746812936053,5.8167,171.91,171.82,33.32]
[1746812936054,33.66,171.92,171.81,33.66]
[1746812936253,33.66,171.92,171.84,5.8188]
[1746812936452,33.66,171.92,171.8,1.9006]
[1746812936849,35.6256,171.92,171.8,1.9006]
[1746812937145,33.66,171.95,171.8,374.26447137]
[1746812937350,33.66,171.95,171.84,15.36387137]
[1746812937654,33.66,171.95,171.85,35.1953]
[1746812938152,33.66,171.95,171.85,3.8475]
[1746812938554,33.66,171.95,171.9,5.8169]
[1746812939256,5.8157,171.94,171.9,5.8169]
[1746812939464,33.66,171.95,171.85,3.8475]
[1746812939755,5.8167,171.91,171.85,3.8475]
[1746812939956,33.28,171.93,171.85,3.8475]
[1746812940359,39.4756,171.95,171.85,3.8475]
[1746812940550,33.66,171.95,171.85,3.8475]
[1746812941055,33.66,171.95,171.85,360.8475]
[1746812941852,33.66,171.95,171.92,5.816]
[1746812942057,33.66,171.95,171.85,360.8475]
[1746812942356,33.66,171.95,171.94,5.8156]
[1746812943059,33.66,171.95,171.89,1.9646]
[1746812943357,15.36387137,172.02,171.92,5.8161]
[1746812943653,67.04,172.0,171.89,1.9646]
[1746812944253,33.66,172.0,171.89,1.9646]
[1746812944455,5.814,171.99,171.95,5.8151]
[1746812944756,33.66,172.07,171.93,48.74387137]
[1746812945055,5.8125,172.04,171.99,5.8137]
[1746812945255,5.8125,172.04,171.94,3.6349]
[1746812946259,5.8125,172.04,172.0,5.8134]
[1746812946564,33.66,172.07,171.94,3.6349]
[1746812946858,33.66,172.07,172.02,5.8129]
[1746812947060,33.66,172.07,171.94,3.6349]
[1746812947261,33.66,172.07,172.05,5.8118]